bitfinex/quotes_BTCUSD_20251113
["timestamp","ask_amount","ask_price","bid_price","bid_amount"]
[1763058206081,0.09816915,99449.0,99441.0,0.001]
[1763058206300,0.0002,99470.0,99424.0,0.07394192]
[1763058206301,0.09816915,99448.0,99425.0,0.04341874]
[1763058206524,0.09816915,99448.0,99446.0,0.001]
[1763058206728,0.09816915,99448.0,99446.0,0.20211271]
[1763058206933,0.09816915,99448.0,99446.0,0.001]
[1763058207567,0.09816915,99448.0,99431.0,0.00146566]
[1763058207770,0.09816915,99448.0,99438.0,0.20112856]
[1763058208187,0.09816915,99448.0,99431.0,0.00146566]
[1763058208406,0.09816915,99433.0,99431.0,0.00046566]
[1763058209540,0.09816915,99433.0,99431.0,0.00146566]
[1763058209857,0.34147456,99432.0,99431.0,0.00246566]
[1763058210096,0.34147456,99432.0,99431.0,0.00146566]
[1763058210503,0.34147456,99432.0,99431.0,0.00046566]
[1763058210707,0.40672456,99432.0,99431.0,0.00046566]
[1763058210912,0.40672456,99432.0,99400.0,0.01006036]
[1763058211060,0.40672456,99432.0,99402.0,0.04341874]
[1763058211061,0.09816915,99406.0,99402.0,0.04341874]
[1763058211285,0.09816915,99406.0,99400.0,0.00013973]
[1763058212599,0.09816915,99406.0,99400.0,0.00213973]
[1763058213011,0.06525,99401.0,99400.0,0.00213973]
[1763058213233,0.08373144,99401.0,99400.0,0.00213973]
[1763058213628,0.08373144,99401.0,99400.0,0.00113973]
[1763058214016,0.08373144,99401.0,99400.0,0.00213973]
[1763058214219,0.08373144,99401.0,99400.0,0.00113973]
[1763058214456,0.08373144,99401.0,99400.0,0.00013973]
[1763058214660,0.09951436,99401.0,99400.0,0.00013973]
[1763058214869,0.42351436,99401.0,99400.0,0.00013973]
[1763058215277,0.42251436,99401.0,99400.0,0.00013973]
[1763058215493,0.42251436,99401.0,99340.0,0.5364141]
[1763058215494,0.2,99370.0,99339.0,0.03024682]
[1763058215683,0.09816915,99343.0,99339.0,0.00013975]
[1763058216851,0.09816915,99343.0,99342.0,0.20132471]
[1763058217066,0.323,99357.0,99349.0,0.20131032]
[1763058217197,0.09816915,99358.0,99342.0,0.04471886]
[1763058217416,0.09816915,99358.0,99343.0,0.20132269]
[1763058217602,0.09816915,99358.0,99355.0,0.20129737]
[1763058217800,0.09816915,99358.0,99356.0,0.2012949]
[1763058218007,0.09816915,99358.0,99356.0,0.1372949]
[1763058219389,0.2,99380.0,99366.0,0.20127502]
[1763058219598,0.323,99387.0,99351.0,0.04341874]
[1763058219802,0.323,99387.0,99371.0,0.20126479]
[1763058220010,0.54634767,99390.0,99371.0,0.20126479]
[1763058220218,0.22,99390.0,99371.0,0.20126479]
[1763058220407,0.02,99390.0,99371.0,0.20126479]
[1763058220862,0.02,99390.0,99361.0,0.20128613]
[1763058220864,0.02,99390.0,99361.0,0.04341874]
[1763058220865,0.2,99390.0,99361.0,0.04341874]
[1763058221061,0.54634767,99390.0,99371.0,0.00113975]
[1763058221460,0.09916915,99373.0,99371.0,0.20240473]
[1763058221608,0.09816915,99373.0,99371.0,0.00013975]
[1763058222462,0.09816915,99373.0,99371.0,0.00113975]
[1763058222870,0.52634767,99390.0,99371.0,0.00113975]
[1763058222871,0.09816915,99372.0,99371.0,0.06379951]
[1763058223074,0.09816915,99372.0,99371.0,0.00013975]
[1763058223272,0.09816915,99372.0,99371.0,0.20140571]
[1763058223851,0.09816915,99372.0,99371.0,0.20240571]
[1763058224058,0.09816915,99372.0,99371.0,0.00113975]
[1763058224637,0.09816915,99372.0,99371.0,0.00013975]
[1763058224843,0.09816915,99372.0,99371.0,0.00113975]
[1763058225038,0.09816915,99372.0,99371.0,0.00213975]
[1763058225254,0.09816915,99372.0,99359.0,0.1544296]
[1763058225472,0.72634767,99390.0,99360.0,0.42701216]
[1763058225473,0.09816915,99361.0,99360.0,0.42701216]
[1763058225666,0.09816915,99376.0,99363.0,0.20128039]
[1763058225875,0.09816915,99376.0,99364.0,0.323]
[1763058226087,0.09816915,99376.0,99370.0,0.01999998]
[1763058226208,0.09816915,99376.0,99375.0,0.04831]
[1763058227094,0.09816915,99376.0,99375.0,0.055241]
[1763058227244,0.09816915,99376.0,99370.0,0.01999998]
[1763058227444,0.09816915,99376.0,99370.0,0.02999997]
[1763058227645,0.09816915,99376.0,99370.0,0.01999998]
[1763058227847,0.09816915,99376.0,99370.0,0.02999997]
[1763058228349,0.01666,99371.0,99370.0,0.02999997]
[1763058228553,0.02,99370.0,99359.0,0.00013978]
[1763058228733,0.11816915,99360.0,99359.0,0.00013978]
[1763058229179,0.09816915,99360.0,99359.0,0.00013978]
[1763058229538,0.11816915,99360.0,99359.0,0.00013978]
[1763058229970,0.18527359,99360.0,99359.0,0.00013978]
[1763058230175,0.16527359,99360.0,99359.0,0.00013978]
[1763058230689,0.16527359,99360.0,99359.0,0.00113978]
[1763058230879,0.16527359,99360.0,99359.0,0.00013978]
[1763058232101,0.18527359,99360.0,99359.0,0.00013978]
[1763058232277,0.16527359,99360.0,99329.0,0.1089372]
[1763058232491,0.16527359,99360.0,99330.0,0.03143268]
[1763058232492,0.09816915,99334.0,99330.0,0.03143268]
[1763058232688,0.09816915,99334.0,99329.0,0.01399341]
[1763058233381,0.09816915,99334.0,99329.0,0.00046621]
[1763058233610,0.02,99330.0,99329.0,0.00046621]
[1763058233832,0.08525,99330.0,99329.0,0.00046621]
[1763058234039,0.08362458,99330.0,99329.0,0.00046621]
[1763058235500,0.08462458,99330.0,99329.0,0.00046621]
[1763058236119,0.10462458,99330.0,99329.0,0.00046621]
[1763058236335,0.10562458,99330.0,99329.0,0.00046621]
[1763058236738,0.08562458,99330.0,99329.0,0.00046621]
[1763058236944,0.08462458,99330.0,99329.0,0.00046621]
[1763058237148,0.08562458,99330.0,99329.0,0.00046621]
[1763058238468,0.10562458,99330.0,99329.0,0.00046621]
[1763058238681,0.08562458,99330.0,99329.0,0.00046621]
[1763058238886,0.10562458,99330.0,99329.0,0.00046621]
[1763058239089,0.08562458,99330.0,99329.0,0.00046621]
[1763058239247,0.10562458,99330.0,99329.0,0.00046621]
[1763058239444,0.10562458,99330.0,99314.0,0.02705]
[1763058239445,0.08562458,99330.0,99301.0,0.323]
[1763058239651,0.09816915,99310.0,99309.0,0.20139]
[1763058240033,0.09816915,99310.0,99309.0,0.20177725]
[1763058240268,0.02,99330.0,99322.0,0.20136425]
[1763058240485,0.86422314,99350.0,99320.0,0.03493]
[1763058240486,0.09816915,99328.0,99320.0,0.03493]
[1763058240682,0.09816915,99328.0,99314.0,0.03493]
[1763058241079,0.09816915,99328.0,99315.0,0.05593149]
[1763058241296,0.09816915,99328.0,99319.0,0.20136933]
[1763058241502,0.09816915,99328.0,99315.0,0.05593149]
[1763058241721,0.09816915,99328.0,99315.0,0.37893149]
[1763058242144,0.09816915,99328.0,99315.0,0.323]
[1763058242347,0.09816915,99328.0,99290.0,0.0256724]
[1763058242348,0.04703,99316.0,99309.0,0.03493]
[1763058242514,0.09816915,99310.0,99302.0,0.03493]
[1763058242826,0.11816915,99310.0,99302.0,0.03493]
[1763058243028,0.09816915,99328.0,99311.0,0.06587]
[1763058243242,0.09916915,99328.0,99312.0,0.006587]
[1763058243569,0.09916915,99328.0,99314.0,0.20138129]
[1763058243695,0.09816915,99328.0,99326.0,0.20135708]
[1763058243909,0.09816915,99328.0,99315.0,0.323]
[1763058244134,0.09816915,99328.0,99312.0,0.006587]
[1763058244349,0.09816915,99313.0,99306.0,0.03026025]
[1763058244566,0.09816915,99313.0,99311.0,0.20138566]
[1763058244767,0.09816915,99313.0,99312.0,0.06587]
[1763058245158,0.09812915,99313.0,99312.0,0.06587]
[1763058245325,0.09812915,99313.0,99302.0,0.03493]
[1763058245722,0.09812915,99313.0,99303.0,0.02319321]
[1763058245723,0.02,99310.0,99303.0,0.02319321]
[1763058245929,0.02,99310.0,99301.0,0.00013968]
[1763058246156,0.09812915,99313.0,99301.0,0.03506968]
[1763058246389,0.09816915,99328.0,99312.0,0.04719]
[1763058246599,0.09816915,99328.0,99327.0,0.20135511]
[1763058246806,0.09816915,99328.0,99327.0,0.26426632]
[1763058247005,0.09816915,99328.0,99327.0,0.10091121]
[1763058247429,0.39654915,99360.0,99336.0,0.06064]
[1763058247430,0.19654915,99360.0,99336.0,0.06064]
[1763058247638,0.21654915,99360.0,99342.0,0.03479]
[1763058247760,0.19654915,99360.0,99342.0,0.03479]
[1763058247955,0.02,99350.0,99342.0,0.03479]
[1763058248163,0.21654915,99360.0,99342.0,0.03479]
[1763058248498,0.09816915,99343.0,99342.0,0.03479]
[1763058248860,0.09812915,99343.0,99342.0,0.03479]
[1763058249066,0.02,99340.0,99334.0,0.03479]
[1763058249478,0.09812915,99343.0,99334.0,0.03479]
[1763058249683,0.09812915,99343.0,99342.0,0.001]
[1763058250145,0.16171915,99343.0,99342.0,0.001]
[1763058250358,0.16171915,99343.0,99326.0,0.03479]
[1763058250359,0.09816915,99359.0,99334.0,0.04341874]
[1763058250577,0.09816915,99344.0,99343.0,0.04341874]
[1763058250810,0.09816915,99344.0,99329.0,0.323]
[1763058251022,0.09816915,99344.0,99313.0,0.03025361]
[1763058251023,0.04957,99335.0,99313.0,0.03025361]
[1763058251201,0.04957,99335.0,99310.0,0.10903947]
[1763058251450,0.05667,99335.0,99319.0,0.03479]
[1763058251653,0.05667,99335.0,99303.0,0.03025744]
[1763058251859,0.09816915,99313.0,99304.0,0.01645574]
[1763058252071,0.02,99310.0,99300.0,0.0004]
[1763058252475,0.01845025,99309.0,99300.0,0.0004]
[1763058252676,0.01845025,99308.0,99300.0,0.0004]
[1763058252886,0.01845025,99307.0,99300.0,0.0004]
[1763058253084,0.02,99310.0,99300.0,0.00053968]
[1763058253085,0.01845025,99306.0,99300.0,0.00053968]
[1763058253314,0.01845025,99305.0,99300.0,0.00053968]
[1763058253518,0.01845025,99304.0,99300.0,0.00053968]
[1763058253690,0.01845025,99303.0,99300.0,0.00053968]
[1763058254022,0.02,99300.0,99288.0,0.02424968]
[1763058254159,0.09816915,99289.0,99288.0,0.02424968]
[1763058255252,0.09816915,99289.0,99288.0,0.07911912]
[1763058256005,0.09816915,99289.0,99288.0,0.02424968]
[1763058256388,0.09816915,99289.0,99288.0,0.02624968]
[1763058257564,0.09816915,99289.0,99288.0,0.002]
[1763058257565,0.11663444,99289.0,99288.0,0.002]
[1763058258313,0.11663444,99289.0,99288.0,0.00292961]
[1763058259052,0.01846529,99289.0,99288.0,0.02336731]
[1763058259252,0.01846529,99289.0,99288.0,0.31877152]
[1763058260052,0.01846529,99289.0,99288.0,0.02336731]
[1763058260276,0.01846529,99289.0,99288.0,0.22480152]
[1763058261383,0.00013953,99300.0,99299.0,0.20141189]
[1763058261614,0.00013953,99300.0,99299.0,0.26790077]
[1763058261826,0.01862962,99300.0,99299.0,0.63431951]
[1763058262029,0.00013953,99300.0,99293.0,0.03512]
[1763058262236,0.09816915,99294.0,99293.0,0.03512]
[1763058262446,0.11666036,99294.0,99293.0,0.03512]
[1763058263298,0.01849121,99294.0,99293.0,0.03512]
[1763058263722,0.01849121,99299.0,99293.0,0.08831611]
[1763058263899,0.11666036,99298.0,99293.0,0.29073968]
[1763058264150,0.01849121,99297.0,99296.0,0.20141743]
[1763058264561,0.01849121,99297.0,99296.0,0.52441743]
[1763058264773,0.01849121,99297.0,99296.0,0.323]
[1763058264952,0.01849121,99297.0,99296.0,0.36413161]
[1763058265172,0.01849121,99297.0,99296.0,0.323]
[1763058265397,0.01849121,99297.0,99293.0,0.03612]
[1763058265619,0.01849121,99297.0,99293.0,0.03512]
[1763058265799,0.01849121,99297.0,99296.0,0.001]
[1763058265943,0.01849121,99297.0,99296.0,0.002]
[1763058266140,0.01849121,99297.0,99296.0,0.001]
[1763058266563,0.07728121,99297.0,99296.0,0.001]
[1763058266777,0.02,99270.0,99253.0,0.09397]
[1763058267003,0.01849121,99269.0,99253.0,0.09397]
[1763058267196,0.01849121,99269.0,99255.0,0.323]
[1763058267397,0.01849121,99269.0,99253.0,0.09397]
[1763058267611,0.01849121,99269.0,99268.0,0.06064]
[1763058267981,0.09816915,99283.0,99269.0,0.04341874]
[1763058268199,0.01848536,99282.0,99281.0,0.20144757]
[1763058268417,0.09816915,99298.0,99284.0,0.36641874]
[1763058268590,0.01948567,99297.0,99296.0,0.20141798]
[1763058268996,0.01848567,99297.0,99285.0,0.09397]
[1763058269265,0.01848567,99296.0,99294.0,0.20142075]
[1763058269468,0.09830865,99298.0,99295.0,0.20141858]
[1763058269682,0.01848904,99297.0,99296.0,0.20141676]
[1763058269862,0.01848904,99297.0,99296.0,0.20241676]
[1763058270075,0.01848904,99297.0,99296.0,0.26800648]
[1763058270453,0.0001395,99298.0,99297.0,0.41697]
[1763058270855,0.0001395,99298.0,99297.0,0.36641874]
[1763058271079,0.0001395,99298.0,99297.0,0.4649021]
[1763058272061,0.0001395,99298.0,99297.0,0.001]
[1763058273134,0.0001395,99298.0,99297.0,0.002]
[1763058273343,0.11680019,99298.0,99297.0,0.002]
[1763058273547,0.11680019,99298.0,99297.0,0.00269715]
[1763058273750,0.11680019,99298.0,99297.0,0.00169715]
[1763058274324,0.11680019,99298.0,99297.0,0.00069715]
[1763058274752,0.19317821,99298.0,99297.0,0.00069715]
[1763058274964,0.17683019,99298.0,99297.0,0.00069715]
[1763058275799,0.17783019,99298.0,99297.0,0.00069715]
[1763058276013,0.17683019,99298.0,99297.0,0.00069715]
[1763058276437,0.17883019,99298.0,99277.0,0.02407]
[1763058276652,0.09816915,99281.0,99279.0,0.20145137]
[1763058276862,0.09816915,99281.0,99280.0,0.04269737]
[1763058277104,0.10030865,99298.0,99288.0,0.06153]
[1763058277302,0.01847582,99297.0,99289.0,0.01712]
[1763058277511,0.10030865,99298.0,99281.0,0.20144653]
[1763058277512,0.09930865,99298.0,99281.0,0.04341874]
[1763058277714,0.01848078,99297.0,99285.0,0.20144006]
[1763058277921,0.09830865,99298.0,99283.0,0.20144329]
[1763058278135,0.09830865,99298.0,99290.0,0.20142935]
[1763058278136,0.01847748,99297.0,99290.0,0.20142935]
[1763058278343,0.01848797,99296.0,99287.0,0.20143567]
[1763058278555,0.09830865,99298.0,99287.0,0.25909116]
[1763058278556,0.01848797,99295.0,99287.0,0.25909116]
[1763058278762,0.09830865,99298.0,99287.0,0.25909116]
[1763058278959,0.01848745,99297.0,99288.0,0.20143309]
[1763058279204,0.09930865,99298.0,99287.0,0.05765549]
[1763058279417,0.01850069,99297.0,99295.0,0.20141945]
[1763058279646,0.09830865,99298.0,99289.0,0.04341874]
[1763058279647,0.01850065,99296.0,99289.0,0.04341874]
[1763058279862,0.0001395,99298.0,99297.0,0.60295469]
[1763058280076,0.0011395,99298.0,99297.0,0.70143805]
[1763058280281,0.0011395,99298.0,99297.0,0.5000221]
[1763058280706,0.0011395,99298.0,99297.0,0.40053874]
[1763058280906,0.0001395,99298.0,99297.0,0.40053874]
[1763058281535,0.0001395,99298.0,99297.0,0.06512]
[1763058283536,0.0001395,99298.0,99297.0,0.01712]
[1763058283955,0.0001395,99298.0,99297.0,0.38353874]
[1763058284162,0.0001395,99298.0,99297.0,0.4820221]
[1763058285447,0.0001395,99298.0,99297.0,0.6277221]
[1763058286113,0.0001395,99298.0,99297.0,0.6297221]
[1763058286907,0.0001395,99298.0,99297.0,0.6317221]
[1763058288351,0.0001395,99298.0,99297.0,0.83313805]
[1763058289341,0.0001395,99298.0,99297.0,0.6297221]
[1763058289540,0.0001395,99298.0,99297.0,0.4840221]
[1763058289742,0.09816915,99316.0,99307.0,0.20139433]
[1763058289948,0.09816915,99316.0,99308.0,0.04616429]
[1763058290346,0.09816915,99316.0,99313.0,0.20138157]
[1763058290545,0.09816915,99316.0,99309.0,0.1457]
[1763058290753,0.09816915,99316.0,99310.0,0.04141628]
[1763058291130,0.09816915,99316.0,99310.0,0.03911437]
[1763058292092,0.09816915,99316.0,99309.0,0.1457]
[1763058293073,0.09816915,99316.0,99309.0,0.34709134]
[1763058293245,0.09816915,99316.0,99314.0,0.20138147]
[1763058293687,0.09816915,99316.0,99310.0,0.0959]
[1763058293688,0.09816915,99316.0,99312.0,0.20138464]
[1763058293891,0.09816915,99316.0,99311.0,0.20138756]
[1763058294089,0.09816915,99316.0,99312.0,0.06443792]
[1763058294290,0.09816915,99316.0,99314.0,0.20138129]
[1763058294512,0.09816915,99316.0,99312.0,0.06443792]
[1763058295120,0.09816915,99316.0,99309.0,0.1457]
[1763058295274,0.09816915,99316.0,99298.0,0.04341874]
[1763058295651,0.09816915,99316.0,99300.0,0.04341874]
[1763058295788,0.09816915,99316.0,99299.0,0.323]
[1763058295992,0.02,99310.0,99299.0,0.323]
[1763058296195,0.09816915,99301.0,99299.0,0.323]
[1763058296823,0.09816915,99301.0,99291.0,0.323]
[1763058297029,0.02,99300.0,99291.0,0.323]
[1763058297203,0.09816915,99301.0,99288.0,0.00023244]
[1763058297402,0.09816915,99316.0,99306.0,0.06153]
[1763058297718,0.09816915,99316.0,99302.0,0.20140496]
[1763058297965,0.09816915,99316.0,99303.0,0.0218525]
[1763058298083,0.09816915,99316.0,99308.0,0.20139355]
[1763058298284,0.09816915,99316.0,99308.0,0.20139217]
[1763058298629,0.09816915,99316.0,99303.0,0.0876225]
[1763058298630,0.09816915,99316.0,99307.0,0.20139535]
[1763058298847,0.09816915,99316.0,99290.0,0.66422314]
[1763058298848,0.09816915,99316.0,99295.0,0.06577]
[1763058299007,0.02,99310.0,99297.0,0.02880241]
[1763058299206,0.09816915,99301.0,99297.0,0.01712]
[1763058300056,0.09026915,99301.0,99297.0,0.01712]
[1763058300993,0.19683915,99316.0,99297.0,0.01712]
[1763058301203,0.19683915,99316.0,99315.0,0.06141]
[1763058301204,0.09816915,99316.0,99315.0,0.06141]
[1763058301633,0.09816915,99316.0,99301.0,0.04341874]
[1763058301794,0.09816915,99316.0,99315.0,0.06141]
[1763058302386,0.09816915,99316.0,99306.0,0.06577]
[1763058302781,0.09916915,99316.0,99301.0,0.04341874]
[1763058302985,0.10016915,99316.0,99296.0,0.06577]
[1763058303188,0.06522,99298.0,99288.0,0.00023244]
[1763058303399,0.08369185,99298.0,99288.0,0.00023244]
[1763058303688,0.09949142,99298.0,99288.0,0.00023244]
[1763058303902,0.08369185,99298.0,99288.0,0.00023244]
[1763058304120,0.40669185,99298.0,99288.0,0.00023244]
[1763058304327,0.45717795,99298.0,99288.0,0.00023244]
[1763058304548,0.45717367,99298.0,99288.0,0.00023244]
[1763058304751,2.45717367,99298.0,99288.0,0.00023244]
[1763058304964,0.323,99293.0,99288.0,0.00023244]
[1763058305169,0.323,99293.0,99250.0,0.0004]
[1763058305170,0.7483684,99260.0,99250.0,0.0004]
[1763058305351,0.20830915,99251.0,99250.0,0.0005395]
[1763058306858,0.22411304,99251.0,99250.0,0.0005395]
[1763058307060,0.24253141,99251.0,99250.0,0.0005395]
[1763058307310,0.24353141,99251.0,99250.0,0.00152131]
[1763058307523,0.27135391,99251.0,99250.0,0.00152131]
[1763058308652,0.59335391,99251.0,99250.0,0.00152131]
[1763058308854,0.59435391,99251.0,99250.0,0.00152131]
[1763058309199,2.59335391,99251.0,99250.0,0.00152131]
[1763058309620,2.59335391,99251.0,99240.0,0.0004]
[1763058309621,0.36641874,99246.0,99240.0,0.0004]
[1763058309948,2.37287,99241.0,99240.0,0.00053894]
[1763058310150,2.39128837,99241.0,99240.0,0.00053894]
[1763058310296,0.39128837,99241.0,99240.0,0.00053894]
[1763058310502,2.39128837,99241.0,99240.0,0.00053894]
[1763058310727,2.43725155,99241.0,99240.0,0.00053894]
[1763058311125,2.44025155,99241.0,99240.0,0.00053894]
[1763058311905,0.02,99200.0,99182.0,0.06197]
[1763058312104,0.09816915,99191.0,99183.0,0.323]
[1763058312313,0.09816915,99191.0,99184.0,0.04846717]
[1763058312503,0.09816915,99191.0,99183.0,0.323]
[1763058313162,0.09816915,99191.0,99189.0,0.20163371]
[1763058313391,0.09816915,99206.0,99190.0,0.06197]
[1763058313596,0.09816915,99206.0,99205.0,0.02052]
[1763058313814,0.09816915,99206.0,99190.0,0.5903384]
[1763058314007,0.09816915,99206.0,99191.0,0.05903384]
[1763058314331,0.08366915,99206.0,99205.0,0.02052]
[1763058314533,0.08366915,99206.0,99190.0,0.06197]
[1763058314718,0.08366915,99206.0,99204.0,0.02052]
[1763058314916,0.07968215,99206.0,99205.0,0.001]
[1763058315749,0.14043215,99206.0,99205.0,0.001]
[1763058315982,0.15244907,99206.0,99205.0,0.001]
[1763058316153,0.15244907,99206.0,99205.0,0.00116341]
[1763058316564,0.14043215,99206.0,99205.0,0.00216341]
[1763058316924,2.48167346,99206.0,99205.0,0.00116341]
[1763058317137,2.48167346,99206.0,99182.0,0.00046475]
[1763058317138,2.0,99198.0,99182.0,0.00046475]
[1763058317350,0.40999999,99200.0,99182.0,0.00046475]
[1763058317351,0.20644915,99183.0,99182.0,0.00046475]
[1763058317554,0.26895217,99183.0,99182.0,0.00046475]
[1763058317800,0.10828,99183.0,99182.0,0.00046475]
[1763058318676,0.04815,99183.0,99182.0,0.00046475]
[1763058318911,0.09816915,99188.0,99182.0,0.00046475]
[1763058319382,0.09816915,99188.0,99172.0,0.04341874]
[1763058319652,0.09863495,99188.0,99172.0,0.04341874]
[1763058319881,0.09863495,99188.0,99164.0,0.34129]
[1763058320139,0.01581747,99185.0,99182.0,0.001]
[1763058320383,0.01581747,99185.0,99162.0,0.001008]
[1763058320384,0.09816915,99167.0,99162.0,0.001008]
[1763058321068,0.06075,99164.0,99162.0,0.001008]
[1763058322156,0.1089,99164.0,99163.0,0.30416804]
[1763058322362,0.15160692,99164.0,99163.0,0.30416804]
[1763058322587,0.09085692,99164.0,99163.0,0.30316804]
[1763058322800,0.15160692,99164.0,99163.0,0.30516804]
[1763058323006,0.1089,99164.0,99163.0,0.30516804]
[1763058323217,0.1089,99164.0,99163.0,0.30316804]
[1763058324885,0.15231874,99164.0,99163.0,0.30316804]
[1763058325097,0.13472001,99164.0,99163.0,0.30316804]
[1763058325610,0.19800893,99164.0,99163.0,0.30316804]
[1763058326254,2.24142767,99164.0,99163.0,0.30316804]
[1763058326472,0.04341874,99138.0,99131.0,0.00012]
[1763058326673,0.40999999,99140.0,99080.0,0.0004]
[1763058326674,0.05959,99120.0,99080.0,0.0004]
[1763058326882,0.04815,99116.0,99103.0,0.01014]
[1763058327095,0.00999999,99100.0,99095.0,0.20182653]
[1763058327326,0.00999999,99100.0,99075.0,0.01014]
[1763058327524,0.00999999,99110.0,99101.0,0.20181431]
[1763058327720,0.00046523,99110.0,99109.0,0.51979802]
[1763058328164,0.00999999,99100.0,99080.0,0.01009285]
[1763058328368,0.02999997,99100.0,99064.0,0.07624577]
[1763058328585,0.00999999,99090.0,99089.0,0.52483875]
[1763058328792,0.02999997,99100.0,99089.0,0.06075685]
[1763058328991,0.00999999,99100.0,99098.0,0.20181889]
[1763058329164,0.0304652,99110.0,99095.0,0.3179]
[1763058329371,0.02,99100.0,99095.0,0.3179]
[1763058329574,0.0304652,99110.0,99100.0,0.20181634]
[1763058329925,0.01999998,99100.0,99081.0,0.04341874]
[1763058330126,0.01999998,99100.0,99083.0,0.04341874]
[1763058330263,0.0504652,99110.0,99095.0,0.20282572]
[1763058330462,0.0504652,99110.0,99095.0,0.001]
[1763058330660,0.0504652,99110.0,99099.0,0.20181639]
[1763058330868,0.09816915,99100.0,99099.0,0.20181684]
[1763058331070,0.09816915,99100.0,99098.0,0.003]
[1763058331499,0.11816915,99100.0,99098.0,0.003]
[1763058331707,0.13816913,99100.0,99088.0,0.52483976]
[1763058332043,0.10816914,99100.0,99095.0,0.002]
[1763058332244,0.09816915,99100.0,99095.0,0.002]
[1763058332491,0.00999999,99080.0,99070.0,0.01009387]
[1763058332677,0.00999999,99080.0,99077.0,0.20186238]
[1763058332903,0.09816915,99079.0,99071.0,0.20187428]
[1763058333081,0.09816915,99079.0,99072.0,0.02018743]
[1763058333505,0.09816915,99079.0,99060.0,0.65444343]
[1763058333506,0.09816915,99079.0,99061.0,0.05075833]
[1763058333702,0.00046494,99079.0,99070.0,0.004]
[1763058333905,0.00046494,99079.0,99076.0,0.20186391]
[1763058334115,0.00046494,99079.0,99078.0,0.04341874]
[1763058334322,0.00046494,99079.0,99070.0,0.004]
[1763058334545,0.00046494,99079.0,99066.0,0.03033031]
[1763058334755,0.09816915,99067.0,99051.0,0.05031821]
[1763058334960,0.00709824,99067.0,99053.0,0.05001762]
[1763058335171,0.00046494,99079.0,99069.0,0.20187949]
[1763058335371,0.00046494,99079.0,99078.0,0.005]
[1763058335594,0.00046494,99079.0,99072.0,0.003]
[1763058335794,0.01999999,99070.0,99064.0,0.20188964]
[1763058336023,0.09816915,99065.0,99053.0,0.05001762]
[1763058336234,0.00046494,99079.0,99068.0,0.20187994]
[1763058336446,0.00046494,99079.0,99064.0,0.26558764]
[1763058336646,0.00046494,99079.0,99078.0,0.002]
[1763058336978,0.00046494,99079.0,99078.0,0.325]
[1763058337182,0.00046494,99079.0,99078.0,0.002]
[1763058337790,0.00046494,99079.0,99077.0,0.20186213]
[1763058337991,0.00046494,99079.0,99075.0,0.20186612]
[1763058338343,0.00046494,99079.0,99069.0,0.20187845]
[1763058338469,0.00046494,99079.0,99066.0,0.20188392]
[1763058338470,0.00046494,99079.0,99067.0,0.20188357]
[1763058338706,0.09816915,99068.0,99067.0,0.20188357]
[1763058339532,0.09816915,99068.0,99067.0,0.001]
[1763058340762,0.09816915,99068.0,99037.0,0.04468]
[1763058340763,0.14389915,99068.0,99037.0,0.04468]
[1763058340949,0.02,99050.0,99040.0,0.61401489]
[1763058341800,0.02,99050.0,99040.0,0.81595146]
[1763058342004,0.02,99050.0,99037.0,0.04468]
[1763058342204,0.02,99050.0,99049.0,0.00404046]
[1763058342429,0.09816915,99053.0,99049.0,0.00404046]
[1763058342650,0.09816915,99053.0,99040.0,0.003]
[1763058342651,0.46618,99050.0,99040.0,0.003]
[1763058342820,0.02,99050.0,99040.0,0.61801489]
[1763058343002,0.02,99050.0,99041.0,0.06180149]
[1763058343200,0.02,99050.0,99040.0,0.61801489]
[1763058343401,0.09816915,99053.0,99051.0,0.20191498]
[1763058343624,0.09816915,99053.0,99052.0,0.00828]
[1763058344103,0.09816915,99053.0,99043.0,0.65869489]
[1763058344273,0.09816915,99053.0,99049.0,0.002]
[1763058344478,0.02,99050.0,99043.0,0.61401489]
[1763058344687,0.09816915,99053.0,99043.0,0.61401489]
[1763058344888,0.09816915,99053.0,99052.0,0.002]
[1763058345093,0.14389915,99053.0,99052.0,0.001]
[1763058345674,0.14389915,99053.0,99039.0,0.04468]
[1763058345675,0.02,99040.0,99039.0,0.04468]
[1763058345880,0.02,99040.0,99030.0,0.61401489]
[1763058346079,0.02,99030.0,99027.0,0.20196378]
[1763058346284,0.02,99030.0,99013.0,0.323]
[1763058346446,0.02,99030.0,99020.0,0.61401489]
[1763058346849,0.00046437,99030.0,99024.0,0.20197063]
[1763058347073,0.00046437,99030.0,99020.0,0.61401489]
[1763058347277,0.00046437,99030.0,99029.0,0.20196104]
[1763058347489,0.00046437,99030.0,99021.0,0.07537149]
[1763058347687,0.00046437,99030.0,99028.0,0.20196258]
[1763058348274,0.00030437,99030.0,99020.0,0.005]
[1763058348469,0.02030437,99030.0,99020.0,0.002]
[1763058348620,0.02030437,99030.0,99029.0,0.00455939]
[1763058348841,0.02030437,99030.0,99020.0,0.61401489]
[1763058349059,0.02030437,99030.0,99029.0,0.20196104]
[1763058349652,0.02030437,99030.0,99028.0,0.002]
[1763058350014,0.02030437,99030.0,99029.0,0.20196104]
[1763058350269,0.00030437,99030.0,99028.0,0.29637179]
[1763058350477,0.00030437,99030.0,99028.0,0.29437179]
[1763058350807,0.00030437,99030.0,99029.0,0.09041]
[1763058351121,0.00030437,99030.0,99028.0,0.001]
[1763058351322,0.09816915,99029.0,99028.0,0.20296308]
[1763058351534,0.00030437,99030.0,99029.0,0.09041]
[1763058351751,0.00030437,99030.0,99020.0,0.61401489]
[1763058351954,0.09816915,99026.0,99024.0,0.20197059]
[1763058352296,0.09816915,99026.0,99020.0,0.81599348]
[1763058352658,0.09816915,99026.0,99016.0,0.09041]
[1763058352659,0.09816915,99026.0,99011.0,0.201996]
[1763058352866,0.02,99020.0,99018.0,0.20198279]
[1763058353068,0.00030437,99030.0,99029.0,0.20196104]
[1763058353279,0.00030437,99030.0,99029.0,0.21299104]
[1763058353674,0.00030437,99030.0,99029.0,0.21399104]
[1763058354093,0.00030437,99030.0,99029.0,0.11516362]
[1763058354304,0.00030437,99030.0,99021.0,0.20197684]
[1763058354504,0.02030437,99030.0,99029.0,0.001]
[1763058354779,0.00030437,99030.0,99029.0,0.02129613]
[1763058354979,0.00030437,99030.0,99029.0,0.02229613]
[1763058355149,0.00030437,99030.0,99029.0,0.003]
[1763058355965,0.00030437,99030.0,99028.0,0.13896126]
[1763058356417,0.00030437,99030.0,99029.0,0.13382874]
[1763058356622,0.00030437,99030.0,99029.0,0.001]
[1763058356998,0.00030437,99030.0,99029.0,0.03134503]
[1763058357202,0.00030437,99030.0,99029.0,0.12816215]
[1763058357457,0.00030437,99030.0,99028.0,0.13896126]